fUSD/lending_fUSD_20240209
["ID","MTS","AMOUNT","RATE_DAILY","PERIOD"]
[313628006,1707489094878,-278.27058569,0.00046301,60]
[313628007,1707489094912,-1846.7,0.00046301,60]
[313628008,1707489094949,-1078.64,0.00046301,60]
[313628009,1707489094985,-1750.71,0.00046301,60]
[313628010,1707489095022,-748.04,0.00046301,60]
[313628011,1707489095058,-15111.92,0.00046301,60]
[313628012,1707489095094,-2996.82,0.00046301,60]
[313628013,1707489095128,-500.0,0.00046301,60]
[313628014,1707489095161,-666.78,0.00046301,60]
[313628015,1707489095194,-1424.12,0.00046301,60]
[313628016,1707489095226,-805.52,0.00046301,60]
[313628017,1707489095259,-1270.62,0.00046301,60]
[313628018,1707489095291,-1713.39,0.00046301,60]
[313628019,1707489095324,-4164.99,0.00046301,60]
[313628020,1707489095357,-2839.8,0.00046301,60]
[313628021,1707489095389,-2489.21,0.00046301,60]
[313628022,1707489095432,-548.22,0.00046301,60]
[313628023,1707489095472,-4025.91,0.00046301,60]
[313628024,1707489095508,-532.13,0.00046301,60]
[313628025,1707489095542,-553.51,0.00046301,60]
[313628026,1707489095578,-1221.98,0.00046301,60]
[313628027,1707489095618,-642.98,0.00046301,60]
[313628028,1707489095656,-15417.53,0.00046301,60]
[313628029,1707489095695,-727.34,0.00046301,60]
[313628030,1707489095732,-606.12,0.00046301,60]
[313628031,1707489095769,-507.75,0.00046301,60]
[313628032,1707489095805,-1413.98,0.00046301,60]
[313628033,1707489095842,-1356.01,0.00046301,60]
[313628034,1707489095878,-596.74,0.00046301,60]
[313628035,1707489095913,-683.42,0.00046301,60]
[313628036,1707489095949,-2780.51,0.00046301,60]
[313628037,1707489095988,-885.98,0.00046301,60]
[313628038,1707489096024,-559.63,0.00046301,60]
[313628039,1707489096060,-1815.62,0.00046301,60]
[313628040,1707489096096,-500.0,0.00046301,60]
[313628041,1707489096131,-172.0,0.000464,36]
[313628042,1707489096166,-171.24229627,0.000465,120]
[313628043,1707489096198,-61374.73256112,0.000465,120]
[313628044,1707489096230,-500.0,0.00046575,60]
[313628045,1707489096261,-844.73,0.00046575,60]
[313628046,1707489096295,-500.0,0.00046575,60]
[313628047,1707489096335,-500.0,0.00046575,60]
[313628048,1707489096369,-514.87,0.00046575,60]
[313628049,1707489096404,-556.58,0.00046575,60]
[313628050,1707489096441,-500.0,0.00046575,60]
[313628051,1707489096476,-529.0,0.00046575,60]
[313628052,1707489096512,-719.56,0.00046575,60]
[313628053,1707489096550,-500.0,0.00046575,60]
[313628054,1707489096583,-784.52,0.00046575,60]
[313628055,1707489096626,-803.54,0.00046575,60]
[313628056,1707489096666,-500.0,0.00046575,60]
[313628057,1707489096705,-594.07,0.00046575,60]
[313628058,1707489096745,-612.78,0.00046575,60]
[313628059,1707489096787,-11082.72,0.00046575,60]
[313628060,1707489096834,-926.53,0.00046575,60]
[313628061,1707489096882,-1936.51,0.00046575,60]
[313628062,1707489096925,-500.0,0.00046575,60]
[313628063,1707489096966,-2734.77,0.00046575,60]
[313628064,1707489097009,-1362.45,0.00046575,60]
[313628065,1707489097049,-10087.41,0.00046575,60]
[313628066,1707489097087,-4753.4,0.00046575,60]
[313628067,1707489097122,-616.94,0.00046575,60]
[313628068,1707489097290,-1304.73,0.00046575,60]
[313628069,1707489097328,-529.74,0.00046575,60]
[313628070,1707489097361,-694.57,0.00046575,60]
[313628071,1707489097392,-2933.43,0.00046575,60]
[313628072,1707489097423,-1351.55,0.00046575,60]
[313628073,1707489097454,-5802.21,0.00046575,60]
[313628074,1707489097485,-526.75,0.00046575,60]
[313628075,1707489097520,-673.46,0.00046575,60]
[313628076,1707489097551,-1006.84,0.00046575,60]
[313628077,1707489097582,-1959.06,0.00046575,60]
[313628078,1707489097615,-835.24,0.00046575,60]
[313628079,1707489097648,-582.06,0.00046575,60]
[313628080,1707489097680,-2558.02,0.00046575,60]
[313628081,1707489097711,-1483.16,0.00046575,60]
[313628082,1707489097742,-617.69,0.00046575,60]
[313628083,1707489097773,-924.0,0.00046575,60]
[313628084,1707489097805,-2064.58,0.00046575,60]
[313628085,1707489097843,-821.58,0.00046575,60]
[313628086,1707489097878,-738.34,0.00046575,60]
[313628087,1707489097912,-648.68,0.00046575,60]
[313628088,1707489097947,-956.96,0.00046575,60]
[313628089,1707489097978,-1956.22,0.00046575,60]
[313628090,1707489098009,-728.6,0.00046575,60]
[313628091,1707489098042,-11697.27,0.00046575,60]
[313628092,1707489098074,-1860.7,0.00046575,60]
[313628093,1707489098104,-502.84,0.00046575,60]
[313628094,1707489098135,-531.53,0.00046575,60]
[313628095,1707489098169,-2241.13,0.00046575,60]
[313628096,1707489098205,-665.24,0.00046575,60]
[313628097,1707489098239,-20136.28,0.00046575,60]
[313628098,1707489098272,-576.87,0.00046575,60]
[313628099,1707489098304,-913.55,0.00046575,60]
[313628100,1707489098335,-1635.42,0.00046575,60]
[313628101,1707489098365,-1230.02,0.00046575,60]
[313628102,1707489098396,-1339.59,0.00046575,60]
[313628103,1707489098427,-1593.05,0.00046575,60]
[313628104,1707489098461,-805.27,0.00046575,60]
[313628105,1707489098495,-506.59,0.00046575,60]
[313628106,1707489098532,-2508.38,0.00046575,60]
[313628107,1707489098564,-3375.75,0.00046575,60]
[313628108,1707489098602,-691.21,0.00046575,60]
[313628109,1707489098636,-1523.72,0.00046575,60]
[313628110,1707489098673,-1846.7,0.00046575,60]
[313628111,1707489098712,-1078.64,0.00046575,60]
[313628112,1707489098748,-1750.71,0.00046575,60]
[313628113,1707489098784,-748.04,0.00046575,60]
[313628114,1707489098817,-15111.92,0.00046575,60]
[313628115,1707489098854,-2996.82,0.00046575,60]
[313628116,1707489098887,-450.04853878,0.00046575,60]
[313628117,1707489098920,-666.78,0.00046575,60]
[313628118,1707489098954,-1424.12,0.00046575,60]
[313628119,1707489098986,-1270.62,0.00046575,60]
[313628120,1707489099018,-805.52,0.00046575,60]
[313628121,1707489099048,-1713.39,0.00046575,60]
[313628122,1707489099082,-4164.99,0.00046575,60]
[313628123,1707489099113,-2839.8,0.00046575,60]
[313628124,1707489099144,-2489.21,0.00046575,60]
[313628125,1707489099176,-548.22,0.00046575,60]
[313628126,1707489099208,-4025.91,0.00046575,60]
[313628127,1707489099239,-532.13,0.00046575,60]
[313628128,1707489099272,-553.51,0.00046575,60]
[313628129,1707489099304,-1221.98,0.00046575,60]
[313628130,1707489099351,-642.98,0.00046575,60]
[313628131,1707489099383,-15417.53,0.00046575,60]
[313628132,1707489099415,-727.34,0.00046575,60]
[313628133,1707489099445,-606.12,0.00046575,60]
[313628134,1707489099475,-507.75,0.00046575,60]
[313628135,1707489099507,-1413.98,0.00046575,60]
[313628136,1707489099537,-1356.01,0.00046575,60]
[313628137,1707489099569,-596.74,0.00046575,60]
[313628138,1707489099601,-683.42,0.00046575,60]
[313628139,1707489099633,-2780.51,0.00046575,60]
[313628140,1707489099668,-885.98,0.00046575,60]
[313628141,1707489099704,-559.63,0.00046575,60]
[313628142,1707489099743,-1815.62,0.00046575,60]
[313628143,1707489099776,-500.0,0.00046575,60]
[313628144,1707489099813,-74387.7936402,0.00046575,120]
[313628145,1707489099846,-1046417.04514203,0.00046575,120]
[313628146,1707489099877,-98073.86417979,0.00046575,120]
[313628147,1707489101278,245000.0,0.00022402,2]
[313628148,1707489104445,-1817.25,0.00046301,60]
[313628149,1707489104481,-870.86,0.00046301,60]
[313628150,1707489104512,-901.35,0.00046301,60]
[313628151,1707489104543,-2948.08,0.00046301,60]
[313628152,1707489104573,-540.7,0.00046301,60]
[313628153,1707489104609,-1817.25,0.00046575,60]
[313628154,1707489104641,-870.86,0.00046575,60]
[313628155,1707489104673,-901.35,0.00046575,60]
[313628156,1707489104705,-2948.08,0.00046575,60]
[313628157,1707489104736,-540.7,0.00046575,60]
[313628158,1707489104766,-948343.18096224,0.00046575,120]
[313628159,1707489104826,516.05,0.00046301,60]
[313628160,1707489104924,516.05,0.00046575,60]
[313628161,1707489106108,465.0066828,0.0004588,100]
[313628162,1707489107561,566.22,0.00046301,60]
[313628163,1707489107823,566.22,0.00046575,60]
[313628164,1707489108011,3206.5834572,0.00044,120]
[313628165,1707489113436,4834.64,0.00046301,60]
[313628166,1707489114041,4834.64,0.00046575,60]
[313628167,1707489116237,540.56,0.00046301,60]
[313628168,1707489116531,540.56,0.00046575,60]
[313628169,1707489116570,10687.73,0.00046301,60]
[313628170,1707489116829,10687.73,0.00046575,60]
[313628171,1707489117054,667.88,0.00046301,60]
[313628172,1707489117294,667.88,0.00046575,60]
[313628173,1707489117914,1359.57,0.00046301,60]
[313628174,1707489118167,1359.57,0.00046575,60]
[313628175,1707489118867,617.34,0.00046301,60]
[313628176,1707489119122,617.34,0.00046575,60]
[313628178,1707489315957,-208.11561963,0.00022561,2]
[313628179,1707489315977,-1377.92965017,0.00022561,2]
[313628180,1707489315998,-526.46657711,0.00022562,2]
[313628181,1707489316020,-157.50625136,0.00022563,2]
[313628182,1707489316041,-155.0,0.00022566,2]
[313628183,1707489316060,-599.0,0.00022566,2]
[313628184,1707489316080,-10575.42045251,0.00022567,2]
[313628185,1707489316100,-497.67,0.00022568,2]
[313628186,1707489316121,-300.0,0.00022663,2]
[313628187,1707489316140,-150.0,0.00022663,2]
[313628188,1707489316165,-5000.0,0.000229,2]
[313628189,1707489316185,-196.38612206,0.00022998,2]
[313628190,1707489316204,-150.0,0.00023,2]
[313628191,1707489319291,155.0,0.0002256,2]
[313628194,1707489376933,253.78,0.00023,2]
[313628219,1707490231707,-526.46657711,0.00024997,2]
[313628221,1707490231718,-2664.03872236,0.00024998,2]
[313628222,1707490231729,-350.0,0.00025,3]
[313628223,1707490231740,-400.0,0.00027,3]
[313628224,1707490231752,-2959.0,0.000274,2]
[313628225,1707490231763,-300.0,0.00028752,2]
[313628226,1707490231774,-2928.91502728,0.00028753,2]
[313628227,1707490231792,-277.50097235,0.00028753,2]
[313628228,1707490231807,-4511.69744231,0.00028753,2]
[313628229,1707490231819,-246.449836,0.00028754,2]
[313628230,1707490231831,-450.0,0.00029,3]
[313628231,1707490231843,-1816.0305017,0.0003,4]
[313628232,1707490231854,-3000.0,0.0003,2]
[313628233,1707490231866,-206.11,0.0003,2]
[313628234,1707490231877,-499.99,0.0003,2]
[313628235,1707490231888,-574.2007237,0.0003,2]
[313628236,1707490231899,-2909.33396248,0.0003001,2]
[313628237,1707490232767,-90.66603752,0.0003001,2]
[313628238,1707490232787,-480.63665884,0.0003002,2]
[313628239,1707490232799,-2519.36334116,0.0003002,2]
[313628240,1707490232809,-2192.20289884,0.0003003,2]
[313628241,1707490232835,-450.0,0.0003003,2]
[313628242,1707490232864,-357.79710116,0.0003003,2]
[313628243,1707490232873,-236.86333392,0.0003004,2]
[313628244,1707490232885,-343.94,0.0003004,2]
[313628249,1707490238027,-1.56697475,0.0003004,2]
[313628250,1707490238041,-1087.88873388,0.0003004,2]
[313628251,1707490238061,-1439.15568145,0.0003004,2]
[313628252,1707490238070,-582.11,0.0003086,2]
[313628253,1707490238079,-157.50625133,0.00030899,2]
[313628254,1707490238089,-500.0,0.00031,3]
[313628255,1707490238098,-621.52506722,0.00031,2]
[313628264,1707490240248,-306.60493278,0.00031,2]
[313628265,1707490240258,-17.76106722,0.00031029,2]
[313628266,1707490241044,-369.23893278,0.00031029,2]
[313628267,1707490241056,-522.79770122,0.00031098,2]
[313628268,1707490241264,-1996.20229878,0.00031098,2]
[313628269,1707490241274,-859.205,0.00031098,2]
[313628270,1707490241288,-175.45491013,0.00031724,2]
[313628291,1707490243096,-624.54508987,0.00031724,2]
[313628293,1707490243105,-201.99882704,0.00031999,4]
[313628295,1707490243115,-169.96,0.00032747,2]
[313628296,1707490243125,-190.09,0.0003276,2]
[313628298,1707490243134,-500.0,0.00032868,2]
[313628300,1707490243144,-150.0,0.00032882,2]
[313628302,1707490243154,-2705.0,0.00032892,2]
[313628304,1707490243163,-500.0,0.000329,2]
[313628305,1707490243173,-550.0,0.00033,3]
[313628307,1707490243182,-376.96,0.00033008,2]
[313628308,1707490243191,-2000.0,0.00033025,2]
[313628309,1707490243201,-282.27194026,0.00033106,6]
[313628310,1707490243211,-236.12401064,0.00033106,6]
[313628311,1707490243221,-356.21641623,0.00033106,6]
[313628312,1707490243230,-582.11,0.00033124,2]
[313628313,1707490243240,-1833.6,0.00033142,2]
[313628314,1707490243249,-23900.0,0.00033164,2]
[313628315,1707490243259,-157.50625133,0.00033284,2]
[313628316,1707490243269,-250.0,0.00033535,2]
[313628317,1707490243279,-250.0,0.00033652,111]
[313628318,1707490243289,-200.0,0.00033706,2]
[313628319,1707490243298,-150.0,0.00033737,2]
[313628320,1707490243307,-199.77264493,0.00033788,4]
[313628321,1707490243316,-191.73170434,0.00033789,4]
[313628322,1707490243326,-1687.08828301,0.00033789,2]
[313628323,1707490243334,-473.54978766,0.0003379,4]
[313628324,1707490243344,-250.0,0.00033796,2]
[313628325,1707490243352,-157.57,0.00034058,2]
[313628326,1707490243362,-2519.0,0.00034098,2]
[313628327,1707490243371,-215.89,0.0003436,120]
[313628328,1707490243380,-222.65,0.00034457,2]
[313628329,1707490243390,-443.194708,0.0003452,2]
[313628330,1707490243399,-1805.342087,0.0003452,2]
[313628331,1707490243409,-2447.93,0.00034548,2]
[313628332,1707490243419,-150.0,0.00034548,10]
[313628333,1707490243428,-1000.0,0.000346,2]
[313628334,1707490243437,-664.792062,0.00034794,2]
[313628335,1707490243447,-2708.013131,0.00034794,2]
[313628336,1707490243456,-886.389416,0.00034931,2]
[313628337,1707490243466,-3610.684175,0.00034931,2]
[313628338,1707490243476,-600.0,0.00035,3]
[313628339,1707490243485,-1107.98677,0.00035068,2]
[313628340,1707490243494,-4513.355219,0.00035068,2]
[313628341,1707490243503,-432.85473228,0.00035242,2]
[313628342,1707490243513,-1551.181479,0.00035342,2]
[313628343,1707490243522,-6318.697307,0.00035342,2]
[313628344,1707490243531,-582.11,0.00035388,2]
[313628345,1707490243543,-1815.44,0.00035655,5]
[313628346,1707490243552,-157.50625133,0.00035669,2]
[313628347,1707490243563,-169.96,0.00036022,2]
[313628348,1707490243573,-207.0,0.00036072,2]
[313628349,1707490243583,-150.0,0.00036868,2]
[313628350,1707490243592,-190.09,0.00036869,2]
[313628351,1707490243602,-9399.6,0.000369,2]
[313628352,1707490243611,-1785.64,0.00036926,5]
[313628353,1707490243620,-50000.0,0.00037,7]
[313628354,1707490243630,-4885.99235745,0.00037,4]
[313628355,1707490243639,-650.0,0.00037,3]
[313628356,1707490243648,-1000.0,0.00037,2]
[313628357,1707490243658,-2205.2689,0.00037069,2]
[313628358,1707490243668,-180.0,0.00037081,2]
[313628359,1707490243677,-2519.0,0.00037098,2]
[313628360,1707490243686,-21956.1950973,0.00037169,4]
[313628361,1707490243696,-9972.24308494,0.00037169,4]
[313628362,1707490243705,-2564.19688952,0.00037169,4]
[313628363,1707490243714,-1282.09844476,0.00037169,4]
[313628364,1707490243723,-3508.20833276,0.00037169,4]
[313628365,1707490243732,-3281.31616982,0.00037169,4]
[313628366,1707490243741,-1000.0,0.000373,2]
[313628367,1707490243750,-432.85473226,0.00037365,2]
[313628368,1707490243760,-582.11,0.00037652,2]
[313628369,1707490243769,-50000.0,0.00038,8]
[313628370,1707490243779,-157.50625133,0.00038054,2]
[313628371,1707490243789,-155.0,0.00038094,2]
[313628372,1707490243799,-151.04,0.00038356,2]
[313628373,1707490243810,-21460.47064362,0.000388,4]
[313628374,1707490243819,-156.6619339,0.00038909,4]
[313628375,1707490243829,-1000.0,0.00038925,2]
[313628376,1707490243838,-14316.9705788,0.0003899,10]
[313628377,1707490243847,-50000.0,0.00039,9]
[313628378,1707490243856,-700.0,0.00039,3]
[313628379,1707490243865,-5000.0,0.00039,30]
[313628380,1707490243874,-500.0,0.00039093,31]
[313628381,1707490243883,-585.07528371,0.00039093,31]
[313628382,1707490243892,-96095.79683996,0.00039094,2]
[313628383,1707490243923,-3324.69940423,0.00039094,2]
[313628384,1707490243944,-1179.72099687,0.00039094,2]
[313628385,1707490243961,-500.0,0.00039094,2]
[313628386,1707490243974,-172622.59872275,0.00039094,2]
[313628387,1707490243997,-1075.45319204,0.00039094,2]
[313628393,1707490245839,-4305.41199603,0.00039094,2]
[313628394,1707490245851,-2656.26686238,0.00039094,2]
[313628396,1707490247324,-20150.48028846,0.00039094,2]
[313628397,1707490270730,20149.72532716,0.00023,2]
[313628398,1707490281738,8799.24734982,9e-05,2]
[313628399,1707490314453,970.09889543,0.00021,4]
[313628400,1707490315155,3057.57350119,0.0003,30]
[313628401,1707490429201,6653.0,0.0002,2]
[313628405,1707490450208,3469.68155368,0.0002,2]
[313628406,1707490770941,852.79586051,0.0002,2]
[313628408,1707490847719,732.18690129,0.00021,2]
[313628409,1707490864024,188.77007004,0.00021769,2]
[313628410,1707490929230,162.1523967,0.00021747,2]
[313628411,1707491112167,164.49,0.00028048,120]
[313628412,1707491236100,1000.0,0.000259,9]
[313628429,1707491427962,159.67197257,0.00022442,2]
[313628469,1707491432014,-22742.70672959,0.00022541,2]
[313628472,1707491432031,-780.78081971,0.00022541,2]
[313628474,1707491432044,-4160.96005272,0.00022541,2]
[313628480,1707491432091,-269.59121782,0.00022541,2]
[313628487,1707491432151,-481.536,0.00022541,2]
[313628488,1707491432210,-500.42,0.00022541,2]
[313628501,1707491438058,-24301.03142805,0.00022541,2]
[313628502,1707491438068,-907.65957195,0.00022542,2]
[313628522,1707491440529,-3278.71351168,0.00022542,2]
[313628523,1707491440542,-3986.2815106,0.00022542,2]
[313628524,1707491440553,-12915.68685511,0.00022542,2]
[313628525,1707491440565,-871.54500003,0.00022542,2]
[313628526,1707491441331,-1979.17891935,0.00022542,2]
[313628598,1707491446398,-1982.27947113,0.00022542,2]
[313628599,1707491449183,-2264.75455149,0.00022542,2]
[313628600,1707491449195,-1219.06036654,0.00022542,2]
[313628601,1707491449207,-7106.22351256,0.00022542,2]
[313628602,1707491449218,-2460.42906315,0.00022542,2]
[313628603,1707491449230,-400.53903024,0.00022542,2]
[313628604,1707491449318,-9836.65227685,0.00022542,2]
[313628606,1707491449330,-3007.11814705,0.00022542,2]
[313628619,1707491599552,527.15,0.00022321,2]
[313628620,1707491638211,904.43359862,0.00022442,2]
[313628621,1707491919582,-246.06675655,0.00022522,2]
[313628622,1707491919602,-208.11561963,0.00022523,2]
[313628623,1707491919623,-1261.97354369,0.00022524,2]
[313628624,1707491919643,-10670.21800144,0.00022541,2]
[313628625,1707491919664,-7737.76657392,0.00022669,2]
[313628626,1707491919683,-751.02071852,0.00022768,2]
[313628627,1707491919702,-155.0,0.00022768,2]
[313628628,1707491919722,-557.15402815,0.00022769,2]
[313628629,1707491919743,-20993.6847581,0.0002277,2]
[313628630,1707491998527,-208.11561963,0.00022541,2]
[313628631,1707492000407,935.74665762,0.00022541,2]
[313628632,1707492018739,3282.13772275,0.00022541,2]
[313628633,1707492060285,-765.36647705,0.00022541,2]
[313628634,1707492093133,-10000.0,0.00022542,2]
[313628635,1707492125405,-10000.0,0.00022542,2]
[313628636,1707492126274,-10000.0,0.00022542,2]
[313628637,1707492126450,-10000.0,0.00022542,2]
[313628638,1707492129128,-10000.0,0.00022542,2]
[313628639,1707492141102,-10000.0,0.00022542,2]
[313628640,1707492142063,-10000.0,0.00022542,2]
[313628641,1707492142747,-10000.0,0.00022542,2]
[313628642,1707492143100,-10000.0,0.00022542,2]
[313628643,1707492143996,-10000.0,0.00022542,2]
[313628644,1707492144055,-10000.0,0.00022542,2]
[313628645,1707492144657,-10000.0,0.00022542,2]
[313628646,1707492145201,-10000.0,0.00022542,2]
[313628647,1707492146205,-10000.0,0.00022542,2]
[313628648,1707492146427,-10000.0,0.00022542,2]
[313628649,1707492163164,-10000.0,0.00022542,2]
[313628650,1707492164171,-10000.0,0.00022542,2]
[313628651,1707492165308,-10000.0,0.00022542,2]
[313628652,1707492194745,500.79,0.00020682,2]
[313628653,1707492205089,16532.02140134,0.00022448,2]
[313628654,1707492205112,7367.97859866,0.00022448,2]
[313628655,1707492208914,-1046.56635868,0.00022539,2]
[313628656,1707492208936,-386.40329842,0.0002254,2]
[313628657,1707492208959,-4292.3476156,0.00022541,2]
[313628658,1707492208982,-652.6827273,0.00022542,2]
[313628659,1707492258385,157.95640921,0.00022442,2]
[313628660,1707492341483,200.0,0.00022374,2]
[313628662,1707492419972,500.0,0.00022299,2]
[313628664,1707492482187,300.0,0.00022076,2]
[313628665,1707492482209,1700.0,0.00022076,2]
[313628678,1707492537849,150.0,0.00022122,2]
[313628681,1707492556167,2705.0,0.00022227,2]
[313628686,1707492627156,155.0,0.00022501,2]
[313628687,1707492631293,1377.92965017,0.00022501,2]
[313628694,1707492632035,-494.29244325,0.00022502,2]
[313628695,1707492632045,-208.11561963,0.00022503,2]
[313628696,1707492632055,-526.46657711,0.00022503,2]
[313628697,1707492632064,-386.40329842,0.00022504,2]
[313628698,1707492632074,-300.0,0.00022505,2]
[313628699,1707492632084,-150.0,0.00022505,2]
[313628700,1707492632094,-8403.52206159,0.00022506,2]
[313628701,1707492632108,-2171.89839092,0.00022506,2]
[313628702,1707492632118,-787.0,0.00022509,2]
[313628703,1707492632135,-250.0,0.00022525,2]
[313628704,1707492632145,-220.74845207,0.0002257,4]
[313628705,1707492632156,-336.51684021,0.0002257,2]
[313628706,1707492632169,-503.74,0.0002257,2]
[313628707,1707492632179,-499.99,0.0002257,2]
[313628708,1707492632189,-156.81,0.00022686,2]
[313628709,1707492632200,-2455.6730418,0.00022699,2]
[313628710,1707492632213,-2242.77160239,0.00022699,2]
[313628711,1707492632225,-3710.71199057,0.00022699,2]
[313628712,1707492632271,-34790.56097433,0.00022699,2]
[313628713,1707492632280,-25738.8132,0.000227,2]
[313628714,1707492632290,-1118.2214,0.000227,2]
[313628715,1707492632299,-262.3985273,0.000227,2]
[313628716,1707492632308,-14895.25547009,0.0002277,2]
[313628717,1707492632339,-98110.74452991,0.0002277,2]
[313628718,1707492632348,-216.54199318,0.00022775,2]
[313628719,1707492632357,-646.35681455,0.00022798,2]
[313628720,1707492632366,-29291.4047685,0.00022798,2]
[313628721,1707492632384,-6035.59806615,0.00022798,2]
[313628722,1707492632396,-499.05471673,0.00022798,2]
[313628723,1707492632407,-528.57058112,0.00022798,2]
[313628724,1707492632430,-428.61907579,0.00022798,2]
[313628726,1707492632566,-929.17347596,0.00022798,2]
[313628727,1707492632579,-4676.21895109,0.00022798,2]
[313628728,1707492632618,-12286.71073881,0.00022798,2]
[313628729,1707492632631,-1405.37249777,0.00022798,2]
[313628730,1707492632643,-1971.44374651,0.00022798,2]
[313628731,1707492632663,-358.12673368,0.00022798,2]
[313628732,1707492632677,-231.3024594,0.00022798,2]
[313628733,1707492632687,-463.43559078,0.00022798,2]
[313628734,1707492632697,-538.49623525,0.00022798,2]
[313628735,1707492632706,-363.35841472,0.00022798,2]
[313628736,1707492632716,-212.73792894,0.00022798,2]
[313628737,1707492632726,-5211.60315265,0.00022798,2]
[313628738,1707492632945,-400.0,0.00022798,2]
[313628739,1707492632956,-526.53627836,0.00022798,2]
[313628740,1707492632965,-1046.03662027,0.00022798,2]
[313628741,1707492632974,-561.62469857,0.00022798,2]
[313628742,1707492632984,-302.6087346,0.00022798,2]
[313628743,1707492632993,-724.1681,0.000228,2]
[313628744,1707492633002,-21475.85062261,0.000228,2]
[313628746,1707492638039,-2490.97927769,0.000228,2]
[313628748,1707492638058,-1657.16358301,0.000228,2]
[313628749,1707492638079,-775.36781298,0.000228,2]
[313628750,1707492638106,-352.70441665,0.000228,2]
[313628751,1707492638167,-12678.20778706,0.000228,2]
[313628752,1707492638177,-462.9675,0.000228,2]
[313628753,1707492638186,-10916.0008841,0.000228,2]
[313628754,1707492638198,-83282.34326238,0.000228,2]
[313628755,1707492638210,-98950.13380209,0.000228,2]
[313628756,1707492638222,-1569.99999472,0.000228,2]
[313628757,1707492638233,-910.7364,0.000228,2]
[313628758,1707492638256,-2600.239944,0.000228,2]
[313628759,1707492638268,-460.30514835,0.000228,2]
[313628760,1707492638280,-1176.99961556,0.000228,2]
[313628761,1707492638292,-4516.69215914,0.000228,2]
[313628762,1707492638304,-995.49080047,0.000228,2]
[313628763,1707492638317,-549.198013,0.000228,2]
[313628764,1707492638330,-541.52603415,0.000228,2]
[313628765,1707492638342,-7372.25454139,0.000228,2]
[313628769,1707492638775,-7139.49937052,0.000228,2]
[313628770,1707492638789,-305.77461126,0.000228,2]
[313628771,1707492638809,-1108.99015576,0.000228,2]
[313628772,1707492638821,-440.7,0.000228,2]
[313628773,1707492638833,-563.68163121,0.000228,2]
[313628774,1707492638845,-5095.36486861,0.000228,2]
[313628775,1707492638856,-588.55930921,0.000228,2]
[313628779,1707492640638,-5771.59845604,0.000228,2]
[313628780,1707492640690,-398.59341565,0.000228,2]
[313628781,1707492641453,-1322.46730531,0.000228,2]
[313628803,1707492643150,-738.92900142,0.000228,2]
[313628804,1707492643162,-7683.92127566,0.000228,2]
[313628805,1707492643171,-500.0,0.000228,8]
[313628806,1707492643181,-2329.28131149,0.00022898,2]
[313628807,1707492643191,-196.38612206,0.00022898,2]
[313628808,1707492643200,-245.40025818,0.00022898,2]
[313628809,1707492643210,-703.13831507,0.00022898,2]
[313628810,1707492643219,-13142.16695082,0.00022899,2]
[313628811,1707492643229,-5435.17662198,0.000229,2]
[313628812,1707492643238,-167.81005821,0.000229,2]
[313628813,1707492643248,-537.78020139,0.000229,2]
[313628814,1707492643257,-1100.0,0.000229,8]
[313628815,1707492643266,-500.79,0.00022946,2]
[313628816,1707492643275,-380465.83085837,0.00023,2]
[313628817,1707492643309,-9498.10814416,0.00023,2]
[313628818,1707492643320,-10470.89458384,0.00023,2]
[313628819,1707492644653,-1428.02506744,0.00022799,2]
[313628825,1707492644954,-1445.53301625,0.00022799,2]
[313628827,1707492644963,-14381.29802269,0.00023,2]
[313628831,1707492644985,-456.5727416,0.00022999,2]